Workbook

Sheet Serviceability
C3: Serviceability Calculator (Residential)
D4: RedZed Lending Solutions Pty Ltd (ACL 311128)
D6: Information can be entered in the clear boxes, the grey boxes contain RedZed calculations.
D8: Application name - mandatory
D10: Income Table | G10: Gross Annual | L10: Net Monthly
D12: Personal Income | F12: Select Household
D13: Applicant / Guarantor 1 | E13: PAYG or Alt Doc | F13: Household 1 | G13: 100000 | L13: ='Tax Calc'!I5 -> 6317.780417
D14: Applicant / Guarantor 2 | E14: PAYG or Alt Doc | F14: Household 2 | G14: 150000 | L14: ='Tax Calc'!I6 -> 8869.448333
D15: Applicant / Guarantor 3 | E15: PAYG or Alt Doc | L15: ='Tax Calc'!I7 -> 0
D16: Applicant / Guarantor 4 | E16: PAYG or Alt Doc | L16: ='Tax Calc'!I8 -> 0
F18: Select Household | G18: Enter Source of Income
D19: Applicant / Guarantor 1 | E19: Other Regular Monthly Income (eg - welfare payments, investments)
D20: Applicant / Guarantor 2 | E20: Other Regular Monthly Income (eg - welfare payments, investments)
D21: Applicant / Guarantor 3 | E21: Other Regular Monthly Income (eg - welfare payments, investments)
D22: Applicant / Guarantor 4 | E22: Other Regular Monthly Income (eg - welfare payments, investments)
D24: Rental Income | E24: Existing | L24: =G24*0.8/12 -> 0
D25: Rental Income | E25: New | L25: =G25*0.8/12 -> 0
D27: Company Income (if applicable)
D28: *Serviceability for Company Applicants will be based on the Company & Guarantors joint ability to service all debts
D30: Company Applicants NPBT - Alt Doc | E30: Once all company expenses and liabilities paid | L30: =(G30-(G30*Table_Company_Tax_Rate))/12 -> 0
D31: =IF(G30 <> 0, "Only NPBT from the borrowing Company entity can be entered in this field. Other related company NPBT needs to be allocated to the director(s)/guarantor(s)", 0) -> 0
D32: Total Monthly Net Income | L32: =SUM(L13,L14,L15,L16,L19,L20,L21,L22,L24,L25,L30) -> 15187.22875
D35: Monthly Living Expenses
D37: Applicants(s) declared expenses - mandatory
D38: Ongoing (combined) standard monthly living expenses declared by applicant(s)
D40: RedZed Living Allowance | F40: Select Household
D41: Number of adults - household 1 | F41: Household 1 | G41: 1 | H41: =Tables!E82 -> 
D42: Number of dependant children - household 1 | F42: Household 1 | G42: 2
D43: Number of adults - household 2 | F43: Household 2 | G43: 2 | H43: =Tables!E83 -> 
D44: Number of dependant children - household 2 | F44: Household 2 | G44: 3
D46: Total Monthly Living Expenses used in assessment | L46: =MAX(SUM(L41:L44),G38) -> 0
D49: Available Income | L49: =Tables!B311 -> 7949.597135
D51: Commitments | L51: Monthly
D53: RedZed Loan Applied For
G54: Loan Amount | H54: Years | I54: Interest Only Term | J54: Interest Rate
E55: Loan 1 | L55: =Tables!B317 -> 0
E56: Loan 2 | L56: =Tables!B318 -> 0
D57: Note: An interest rate buffer is automatically applied by the calculator. You do not need to apply a separate buffer.
G58: Financier
D59: Existing Loans | E59: Loan 1 - Existing Secured
E60: Loan 2 - Existing Secured
E61: Loan 3 - Existing Unsecured
E62: Loan 4 - Existing Unsecured
G64: Total Credit Limits
D65: Credit Cards | H65: (@3.82%) | L65: =G65*3.82% -> 0
D67: Maintenance / On Going Rent
D69: Other Fixed Monthly Repayments
D71: Total Monthly Commitments | L71: =SUM(L55:L69) -> 0
D74: This Serviceability Calculator is intended as a guide only and no loan approval can be assumed on the basis of the results of this calculator. All applications remain subject to the normal credit and approval criteria of RedZed Lending Solutions Pty Ltd. | L74: =IFERROR('Serviceability Calc'!C19,0) -> 0
I77: Must Be > 1.1
D79: I, the Introducer, confirm that reasonable enquiries about the applicant(s) current and ongoing financial situation have been undertaken and are reflected in the figures entered into this calculation. The applicants(s) have been given sufficient time to consider the declared monthly living expenses amount which has been derived following due consideration.
M84: ='Version Control'!I1 -> V10.12 210115

Sheet HEM (hidden)
A1: Income Range ($) | B1: Single Adult | C1: Single Adult +1 | D1: Single Adult +2 | E1: Single Adult +3 | F1: Single Adult +4 | G1: Single Adult +5 | H1: Single Adult +6 | I1: Couple | J1: Couple +1 | K1: Couple +2 | L1: Couple +3 | M1: Couple +4 | N1: Couple +5 | O1: Couple +6
A2: 0 - 21,000 | B2: 1107.108962 | C2: 1576.295186 | D2: 1968.675353 | E2: 2414.216118 | F2: 2826.561461 | G2: 3474.808681 | H2: 4079.814106 | I2: 2157.512933 | J2: 2518.940489 | K2: 2776.313209 | L2: 3115.113587 | M2: 3598.807077 | N2: 3880.986562 | O2: 4163.166048
A3: 21,001 - 32,000 | B3: 1173.146683 | C3: 1576.295186 | D3: 1968.675353 | E3: 2414.216118 | F3: 2826.561461 | G3: 3474.808681 | H3: 4079.814106 | I3: 2157.512933 | J3: 2518.940489 | K3: 2776.313209 | L3: 3115.113587 | M3: 3598.807077 | N3: 3880.986562 | O3: 4163.166048
A4: 32,001 - 43,000 | B4: 1234.65368 | C4: 1637.700858 | D4: 2030.046035 | E4: 2414.216118 | F4: 2826.561461 | G4: 3474.808681 | H4: 4079.814106 | I4: 2218.785328 | J4: 2518.940489 | K4: 2776.313209 | L4: 3115.113587 | M4: 3598.807077 | N4: 3880.986562 | O4: 4163.166048
A5: 43,001 - 54,000 | B5: 1324.702087 | C5: 1727.600774 | D5: 2119.894621 | E5: 2503.726897 | F5: 2916.039719 | G5: 3474.808681 | H5: 4079.814106 | I5: 2308.490019 | J5: 2608.352372 | K5: 2865.945042 | L5: 3115.113587 | M5: 3598.807077 | N5: 3880.986562 | O5: 4163.166048
A6: 54,001 - 65,000 | B6: 1486.920085 | C6: 1889.551189 | D6: 2281.752918 | E6: 2664.976997 | F6: 3077.230962 | G6: 3474.808681 | H6: 4079.814106 | I6: 2470.089134 | J6: 2769.423967 | K6: 3027.412867 | L6: 3275.714407 | M6: 3598.807077 | N6: 3880.986562 | O6: 4163.166048
A7: 65,001 - 86,000 | B7: 1696.336138 | C7: 2098.621911 | D7: 2490.704506 | E7: 2873.143221 | F7: 3285.32145 | G7: 3682.567778 | H7: 4079.814106 | I7: 2678.70608 | J7: 2977.359961 | K7: 3235.860375 | L7: 3483.042517 | M7: 3805.830312 | N7: 4087.61137 | O7: 4369.392428
A8: 86,001 - 108,000 | B8: 2017.785826 | C8: 2419.541521 | D8: 2811.441208 | E8: 3192.674363 | F8: 3604.736358 | G8: 4001.473991 | H8: 4398.211624 | I8: 2998.929111 | J8: 3296.537785 | K8: 3555.823364 | L8: 3801.287376 | M8: 4123.607184 | N8: 4404.776703 | O8: 4685.946221
A9: 108,001 - 129,000 | B9: 2235.17267 | C9: 2636.570013 | D9: 3028.34595 | E9: 3408.763767 | F9: 3820.747357 | G9: 4217.141029 | H9: 4613.5347 | I9: 3215.486473 | J9: 3512.388194 | K9: 3772.204921 | L9: 4016.507093 | M9: 4338.510232 | N9: 4619.266171 | O9: 4900.022111
A10: 129,001 - 151,000 | B10: 2648.981996 | C10: 3049.696835 | D10: 3441.237446 | E10: 3820.103453 | F10: 4231.937174 | G10: 4627.675968 | H10: 5023.414763 | I10: 3627.716709 | J10: 3923.272941 | K10: 4184.100101 | L10: 4426.190407 | M10: 4747.591145 | N10: 5027.559754 | O10: 5307.528363
A11: 151,001 - 172,000 | B11: 2818.268984 | C11: 3218.704829 | D11: 3610.149054 | E11: 3988.380108 | F11: 4400.15288 | G11: 4795.623854 | H11: 5191.094828 | I11: 3796.357717 | J11: 4091.363483 | K11: 4352.604466 | L11: 4593.790023 | M11: 4914.944264 | N11: 5194.590901 | O11: 5474.237537
A12: 172,001 - 215,000 | B12: 2985.088488 | C12: 3385.248999 | D12: 3776.598486 | E12: 4154.204088 | F12: 4565.916101 | G12: 4961.123005 | H12: 5356.329908 | I12: 3962.540657 | J12: 4257.003982 | K12: 4518.652107 | L12: 4758.945943 | M12: 5079.857295 | N12: 5359.186454 | O12: 5638.515614
A13: 215,001 - 269,000 | B13: 3466.960008 | C13: 3866.325985 | D13: 4257.40118 | E13: 4633.199476 | F13: 5044.73741 | G13: 5439.181761 | H13: 5833.626111 | I13: 4442.573247 | J13: 4735.469766 | K13: 4998.29498 | L13: 5236.013323 | M13: 5556.223129 | N13: 5834.6356 | O13: 6113.048071
A14: 269,000 - 323,000 | B14: 3935.561656 | C14: 4334.154816 | D14: 4724.96376 | E14: 5099.005005 | F14: 5510.373206 | G14: 5904.076093 | H14: 6297.77898 | I14: 4909.387173 | J14: 5200.759627 | K14: 5464.729763 | L14: 5699.942967 | M14: 6019.470303 | N14: 6296.991085 | O14: 6574.511868
A15: 323,001 plus | B15: 4177.376001 | C15: 4575.570568 | D15: 4966.24162 | E15: 5339.375672 | F15: 5750.656802 | G15: 6143.977003 | H15: 6537.297203 | I15: 5150.278618 | J15: 5440.864773 | K15: 5705.425558 | L15: 5939.346604 | M15: 6258.521666 | N15: 6535.582428 | O15: 6812.64319
A19: Income Range lookup | B19: Row Offset Value | D19: Dependents/Household Number | F19: 1 | G19: 2 | H19: 3 | I19: 4 | J19: 5 | K19: 6 | L19: 7
A20: 21001 | B20: 1 | D20: 0 | F20: 0 | G20: 7 | H20: 13 | I20: 13 | J20: 13 | K20: 13 | L20: 13
A21: 32001 | B21: 2 | D21: 1 | F21: 1 | G21: 8 | H21: 13 | I21: 13 | J21: 13 | K21: 13 | L21: 13
A22: 43001 | B22: 3 | D22: 2 | F22: 2 | G22: 9 | H22: 13 | I22: 13 | J22: 13 | K22: 13 | L22: 13
A23: 54001 | B23: 4 | D23: 3 | F23: 3 | G23: 10 | H23: 13 | I23: 13 | J23: 13 | K23: 13 | L23: 13
A24: 65001 | B24: 5 | D24: 4 | F24: 4 | G24: 11 | H24: 13 | I24: 13 | J24: 13 | K24: 13 | L24: 13
A25: 86001 | B25: 6 | D25: 5 | F25: 5 | G25: 12 | H25: 13 | I25: 13 | J25: 13 | K25: 13 | L25: 13
A26: 108001 | B26: 7 | D26: 6 | F26: 6 | G26: 13 | H26: 13 | I26: 13 | J26: 13 | K26: 13 | L26: 13
A27: 129001 | B27: 8 | D27: 7 | F27: 13 | G27: 13 | H27: 13 | I27: 13 | J27: 13 | K27: 13 | L27: 13
A28: 151001 | B28: 9 | D28: 8 | F28: 13 | G28: 13 | H28: 13 | I28: 13 | J28: 13 | K28: 13 | L28: 13
A29: 172001 | B29: 10 | D29: 9 | F29: 13 | G29: 13 | H29: 13 | I29: 13 | J29: 13 | K29: 13 | L29: 13
A30: 215001 | B30: 11 | D30: 10 | F30: 13 | G30: 13 | H30: 13 | I30: 13 | J30: 13 | K30: 13 | L30: 13
A31: 269000 | B31: 12 | D31: 11 | F31: 13 | G31: 13 | H31: 13 | I31: 13 | J31: 13 | K31: 13 | L31: 13
A32: 323001 | B32: 13 | D32: 12 | F32: 13 | G32: 13 | H32: 13 | I32: 13 | J32: 13 | K32: 13 | L32: 13
D39: Household 1 | H39: Household 2
D40: Gross Income | F40: =IF(EXACT(Serviceability!F13,D39),Serviceability!G13,0)+IF(EXACT(Serviceability!F14, D39),Serviceability!G14,0)+IF(EXACT(Serviceability!F15, D39),Serviceability!G15,0)+IF(EXACT(Serviceability!F16, D39),Serviceability!G16,0) -> 100000 | H40: Gross Income | J40: =IF(EXACT(Serviceability!F13, H39),Serviceability!G13,0)+IF(EXACT(Serviceability!F14,H39),Serviceability!G14,0)+IF(EXACT(Serviceability!F15,H39),Serviceability!G15,0)+IF(EXACT(Serviceability!F16,H39),Serviceability!G16,0) -> 150000
D41: Single/Couple | F41: =+Serviceability!$G$41 -> 1 | H41: Single/Couple | J41: =Serviceability!G43 -> 2
D42: Dependents | F42: =+Serviceability!$G$42 -> 2 | H42: Dependents | J42: =Serviceability!G44 -> 3
D43: HEM Row Offset Value | F43: =IFERROR(VLOOKUP(F40,HEM!$A$20:$B$32,2,TRUE),0) -> 6 | H43: HEM Row Offset Value | J43: =IFERROR(VLOOKUP(J40,HEM!$A$20:$B$32,2,TRUE),0) -> 8
D44: HEM Column Offset Value | F44: =OFFSET($E$20,F42,F41) -> 2 | H44: HEM Column Offset Value | J44: =OFFSET($E$20,J42,J41) -> 10
D45: HEM Starting Value | F45: =OFFSET(B2,0,0) -> 1107.108962 | H45: HEM Starting Value | J45: =OFFSET(F2,0,0) -> 2826.561461
D46: HEM Min Living Expense | F46: =IF(F40=0, 0, OFFSET($B$2,F43,F44)) -> 2811.441208 | H46: HEM Min Living Expense | J46: =IF(J40=0,0,OFFSET($B$2,J43,J44)) -> 4426.190407

Sheet Tables (hidden)
A2: Tax
G3: Flood Levy
A4: Wages Over | B4: Not to Exceed | C4: Tax Rate | G4: Taxable income | H4: Flood levy on this income
A5: 0 | B5: 18200 | C5: 0 | G5: $0 to $50,000 | H5: Nil | I5: 0 | J5: 50000 | K5: 0
A6: =B5+1 -> 18201 | B6: 45000 | C6: 0.19 | D6: =D5+C5*(B5-A5) -> 0 | G6: $50,001 to $100,000 | H6: Half a cent for each $1 over $50,000 | I6: 50001 | J6: 100000 | K6: 0 | L6: =(J6-J5)*K6 -> 0
A7: =B6+1 -> 45001 | B7: 120000 | C7: 0.325 | D7: =ROUNDUP(D6+C6*(B6-A6),0) -> 5092 | G7: Over $100,000 | H7: $250 plus 1c for each $1 over $100,000 | I7: =J6+1 -> 100001 | K7: 0
A8: =B7+1 -> 120001 | B8: 180000 | C8: 0.37 | D8: =ROUNDUP(D7+C7*(B7-A7),0) -> 29467
A9: =B8+1 -> 180001 | C9: 0.45 | D9: =ROUNDUP(D8+C8*(B8-A8),0) -> 51667
A12: Medicare Levy
G13: Taxable income | H13: Tax on this income
A14: 0 | B14: 16284 | C14: 0 | E14: not currently used | G14: 0 - $18,200 | H14: Nil
A15: 16284 | B15: 17604 | C15: 0.2 | G15: $18,201 - $37,000 | H15: 19c for each $1 over $18,200
A16: 17604+ | C16: 0.02 | G16: $37,001 - $90,000 | H16: $3,572 plus 32.5c for each $1 over $37,000
G17: $90,001 - $180,000 | H17: $17,547 plus 37c for each $1 over $87,000
G18: $180,001 and over | H18: $54,547 plus 45c for each $1 over $180,000
A20: Company Tax
A22: Rate | B22: 0.275
A28: APR Buffer | B28: 0.02
A29: Minimum Rate | B29: 0.06
A31: RedZed Loan Applied For: Repayment With Buffer | C31: Buffered % | D31: Minimum % | E31: Rate % | F31: Buffer % | G31: Buffered % | H31: Total Term | I31: Interest Only Term | J31: Net Term | K31: Amount
A32: Buffered Loan 1 | B32: =IF(Serviceability!H55=0,0,-PMT((D32)/12,J32*12,Serviceability!G55)) -> 0 | C32: =G32 -> 0.02 | D32: =IF(C32>=$B$29,C32,$B$29) -> 0.06 | E32: =Serviceability!J55 -> 0 | F32: =$B$28 -> 0.02 | G32: =E32+F32 -> 0.02 | H32: =Serviceability!H55 -> 0 | I32: =Serviceability!I55 -> 0 | J32: =H32-I32 -> 0 | K32: =Serviceability!G55 -> 0
A33: Buffered Loan 2 | B33: =IF(Serviceability!H56=0,0,-PMT((D33)/12,J33*12,Serviceability!G56)) -> 0 | C33: =G33 -> 0.02 | D33: =IF(C33>=$B$29,C33,$B$29) -> 0.06 | E33: =Serviceability!J56 -> 0 | F33: =$B$28 -> 0.02 | G33: =E33+F33 -> 0.02 | H33: =Serviceability!H56 -> 0 | I33: =Serviceability!I56 -> 0 | J33: =H33-I33 -> 0 | K33: =Serviceability!G56 -> 0
A36: Existing Loan: Repayment With Buffer
A37: Buffered Loan 1 | B37: 0.2 | C37: =Serviceability!L59*(1+Tables!B37) -> 0 | G37: =Serviceability!L59 -> 0 | H37: =Serviceability!E59 -> Loan 1 - Existing Secured
A38: Buffered Loan 2 | B38: 0.2 | C38: =Serviceability!L60*(1+Tables!B38) -> 0 | G38: =Serviceability!L60 -> 0 | H38: =Serviceability!E60 -> Loan 2 - Existing Secured
A41: Additional Fees for Serviceability
A42: Fees - Loan 1 | B42: 15 | C42: =IF(Serviceability!L55=0,0,15) -> 0 | D42: Monthly Account Keeping Fee Resi
A43: Fees - Loan 2 | B43: 15 | C43: =IF(Serviceability!L56=0,0,15) -> 0 | D43: Monthly Account Keeping Fee Resi
A47: Column1 | B47: Single Adult | C47: Single Adult + 1 Dependant | D47: Single Adult + 2 Dependants | E47: Single Adult + 3 Dependants | F47: Single Adult + 4 Dependants | G47: Single Adult + 5 Dependants | H47: Single Adult + 6 Dependants | I47: Couple | J47: Couple + 1 Dependant | K47: Couple + 2 Dependants | L47: Couple + 3 Dependants | M47: Couple + 4 Dependants | N47: Couple + 5 Dependants | O47: Couple + 6 Dependants
A48: Income Range ($) | B48: Proposed Benchmark | C48: Proposed Benchmark | D48: Proposed Benchmark | E48: Proposed Benchmark | F48: Proposed Benchmark | G48: Proposed Benchmark | H48: Proposed Benchmark | I48: Proposed Benchmark | J48: Proposed Benchmark | K48: Proposed Benchmark | L48: Proposed Benchmark | M48: Proposed Benchmark | N48: Proposed Benchmark | O48: Proposed Benchmark
A49: 0 - 21,000 | B49: =251*52.2/12 -> 1091.85 | I49: - | J49: - | K49: - | L49: - | M49: - | N49: - | O49: -
A50: 21,001 - 32,000 | B50: =265*52.2/12 -> 1152.75 | C50: =354*52.2/12 -> 1539.9 | D50: =445*52.2/12 -> 1935.75 | E50: - | F50: - | G50: - | H50: - | I50: =487*52.2/12 -> 2118.45 | J50: - | K50: - | L50: - | M50: - | N50: - | O50: -
A51: 32,001 - 43,000 | B51: =280*52.2/12 -> 1218 | C51: =369*52.2/12 -> 1605.15 | D51: =460*52.2/12 -> 2001 | E51: =552*52.2/12 -> 2401.2 | F51: =(552+93)*52.2/12 -> 2805.75 | G51: - | H51: - | I51: =502*52.2/12 -> 2183.7 | J51: =578*52.2/12 -> 2514.3 | K51: =636*52.2/12 -> 2766.6 | L51: - | M51: - | N51: - | O51: -
A52: 43,001 - 53,000 | B52: =301*52.2/12 -> 1309.35 | C52: =391*52.2/12 -> 1700.85 | D52: =481*52.2/12 -> 2092.35 | E52: =574*52.2/12 -> 2496.9 | F52: =(574+93)*52.2/12 -> 2901.45 | G52: - | H52: - | I52: =523*52.2/12 -> 2275.05 | J52: =599*52.2/12 -> 2605.65 | K52: =657*52.2/12 -> 2857.95 | L52: =720*52.2/12 -> 3132 | M52: - | N52: - | O52: -
A53: 53,001 - 64,000 | B53: =338*52.2/12 -> 1470.3 | C53: =428*52.2/12 -> 1861.8 | D53: =519*52.2/12 -> 2257.65 | E53: =612*52.2/12 -> 2662.2 | F53: =(612+93)*52.2/12 -> 3066.75 | G53: =(612+93+93)*52.2/12 -> 3471.3 | H53: - | I53: =561*52.2/12 -> 2440.35 | J53: =637*52.2/12 -> 2770.95 | K53: =694*52.2/12 -> 3018.9 | L53: =757*52.2/12 -> 3292.95 | M53: =(757+63)*52.2/12 -> 3567 | N53: =(757+63+63)*52.2/12 -> 3841.05 | O53: -
A54: 64,001 - 85,000 | B54: =385*52.2/12 -> 1674.75 | C54: =475*52.2/12 -> 2066.25 | D54: =566*52.2/12 -> 2462.1 | E54: =659*52.2/12 -> 2866.65 | F54: =(659+93)*52.2/12 -> 3271.2 | G54: =(659+93+93)*52.2/12 -> 3675.75 | H54: =(659+93+93)*52.2/12 -> 3675.75 | I54: =608*52.2/12 -> 2644.8 | J54: =684*52.2/12 -> 2975.4 | K54: =741*52.2/12 -> 3223.35 | L54: =804*52.2/12 -> 3497.4 | M54: =(804+63)*52.2/12 -> 3771.45 | N54: =(804+63+63)*52.2/12 -> 4045.5 | O54: =(804+63+63)*52.2/12 -> 4045.5
A55: 85,001 - 107,000 | B55: =459*52.2/12 -> 1996.65 | C55: =549*52.2/12 -> 2388.15 | D55: =640*52.2/12 -> 2784 | E55: =733*52.2/12 -> 3188.55 | F55: =(733+93)*52.2/12 -> 3593.1 | G55: =(733+93+93)*52.2/12 -> 3997.65 | H55: =(733+93+93+93)*52.2/12 -> 4402.2 | I55: =682*52.2/12 -> 2966.7 | J55: =757*52.2/12 -> 3292.95 | K55: =815*52.2/12 -> 3545.25 | L55: =878*52.2/12 -> 3819.3 | M55: =(878+63)*52.2/12 -> 4093.35 | N55: =(878+63+63)*52.2/12 -> 4367.4 | O55: =(878+63+63)*52.2/12 -> 4367.4
A56: 107,001 - 128,000 | B56: =513*52.2/12 -> 2231.55 | C56: =603*52.2/12 -> 2623.05 | D56: =693*52.2/12 -> 3014.55 | E56: =(787)*52.2/12 -> 3423.45 | F56: =(787+94)*52.2/12 -> 3832.35 | G56: =(787+94+94)*52.2/12 -> 4241.25 | H56: =(787+94+94+94)*52.2/12 -> 4650.15 | I56: =735*52.2/12 -> 3197.25 | J56: =811*52.2/12 -> 3527.85 | K56: =868*52.2/12 -> 3775.8 | L56: =931*52.2/12 -> 4049.85 | M56: =(931+63)*52.2/12 -> 4323.9 | N56: =(931+63+63)*52.2/12 -> 4597.95 | O56: =(931+63+63)*52.2/12 -> 4597.95
A57: 128,001 - 150,000 | B57: =603*52.2/12 -> 2623.05 | C57: =693*52.2/12 -> 3014.55 | D57: =784*52.2/12 -> 3410.4 | E57: =(878)*52.2/12 -> 3819.3 | F57: =(878+94)*52.2/12 -> 4228.2 | G57: =(878+94+94)*52.2/12 -> 4637.1 | H57: =(878+94+94+94)*52.2/12 -> 5046 | I57: =826*52.2/12 -> 3593.1 | J57: =901*52.2/12 -> 3919.35 | K57: =959*52.2/12 -> 4171.65 | L57: =1022*52.2/12 -> 4445.7 | M57: =(1022+63)*52.2/12 -> 4719.75 | N57: =(1022+63+63)*52.2/12 -> 4993.8 | O57: =(1022+63+63)*52.2/12 -> 4993.8
A58: 150,001 - 171,000 | B58: =637*52.2/12 -> 2770.95 | C58: =727*52.2/12 -> 3162.45 | D58: =818*52.2/12 -> 3558.3 | E58: =(912)*52.2/12 -> 3967.2 | F58: =(912+94)*52.2/12 -> 4376.1 | G58: =(912+94+94)*52.2/12 -> 4785 | H58: =(912+94+94+94)*52.2/12 -> 5193.9 | I58: =860*52.2/12 -> 3741 | J58: =935*52.2/12 -> 4067.25 | K58: =993*52.2/12 -> 4319.55 | L58: =1056*52.2/12 -> 4593.6 | M58: =(1056+63)*52.2/12 -> 4867.65 | N58: =(1056+63+63)*52.2/12 -> 5141.7 | O58: =(1056+63+63)*52.2/12 -> 5141.7
A59: 171,001 - 214,000 | B59: =676*52.2/12 -> 2940.6 | C59: =766*52.2/12 -> 3332.1 | D59: =857*52.2/12 -> 3727.95 | E59: =(951)*52.2/12 -> 4136.85 | F59: =(951+94)*52.2/12 -> 4545.75 | G59: =(951+94+94)*52.2/12 -> 4954.65 | H59: =(951+94+94+94)*52.2/12 -> 5363.55 | I59: =899*52.2/12 -> 3910.65 | J59: =974*52.2/12 -> 4236.9 | K59: =1032*52.2/12 -> 4489.2 | L59: =1095*52.2/12 -> 4763.25 | M59: =(1095+63)*52.2/12 -> 5037.3 | N59: =(1095+63+63)*52.2/12 -> 5311.35 | O59: =(1095+63+63)*52.2/12 -> 5311.35
A60: 214,001 - 267,000 | B60: =781*52.2/12 -> 3397.35 | C60: =871*52.2/12 -> 3788.85 | D60: =962*52.2/12 -> 4184.7 | E60: =(1056)*52.2/12 -> 4593.6 | F60: =(1056+95)*52.2/12 -> 5006.85 | G60: =(1056+95+95)*52.2/12 -> 5420.1 | H60: =(1056+95+95+95)*52.2/12 -> 5833.35 | I60: =1004*52.2/12 -> 4367.4 | J60: =1079*52.2/12 -> 4693.65 | K60: =1136*52.2/12 -> 4941.6 | L60: =1199*52.2/12 -> 5215.65 | M60: =(1199+63)*52.2/12 -> 5489.7 | N60: =(1199+63+63)*52.2/12 -> 5763.75 | O60: =(1199+63+63)*52.2/12 -> 5763.75
A61: 267,000 - 321,000 | B61: =912*52.2/12 -> 3967.2 | C61: =1003*52.2/12 -> 4363.05 | D61: =1093*52.2/12 -> 4754.55 | E61: =(1188)*52.2/12 -> 5167.8 | F61: =(1188+95)*52.2/12 -> 5581.05 | G61: =(1188+95+95)*52.2/12 -> 5994.3 | H61: =(1188+95+95+95)*52.2/12 -> 6407.55 | I61: =1135*52.2/12 -> 4937.25 | J61: =1210*52.2/12 -> 5263.5 | K61: =1268*52.2/12 -> 5515.8 | L61: =1330*52.2/12 -> 5785.5 | M61: =(1330+63)*52.2/12 -> 6059.55 | N61: =(1330+63+63)*52.2/12 -> 6333.6 | O61: =(1330+63+63)*52.2/12 -> 6333.6
A62: 321,001 plus | B62: =944*52.2/12 -> 4106.4 | C62: =1034*52.2/12 -> 4497.9 | D62: =1125*52.2/12 -> 4893.75 | E62: =(1220)*52.2/12 -> 5307 | F62: =(1220+95)*52.2/12 -> 5720.25 | G62: =(1220+95+95)*52.2/12 -> 6133.5 | H62: =(1220+95+95+95)*52.2/12 -> 6546.75 | I62: =1167*52.2/12 -> 5076.45 | J62: =1241*52.2/12 -> 5398.35 | K62: =1299*52.2/12 -> 5650.65 | L62: =1362*52.2/12 -> 5924.7 | M62: =(1362+63)*52.2/12 -> 6198.75 | N62: =(1362+63+63)*52.2/12 -> 6472.8 | O62: =(1362+63+63)*52.2/12 -> 6472.8
A68: Household 1
A69: Household 2 | B69: Monthly Income | F69: Other Income | H69: Company
B71: Household 1 | C71: Household 2 | F71: Household 1 | G71: Household 2 | I71: Always Household 1
A72: Applicant / Guarantor 1 | B72: =IF(EXACT(Serviceability!F13, "Household 1"),Serviceability!G13,0) -> 100000 | C72: =IF(EXACT(Serviceability!F13, "Household 2"),Serviceability!G13,0) -> 0 | E72: Applicant / Guarantor 1 | F72: =IF(EXACT(Serviceability!F19, "Household 1"),Serviceability!L19,0) -> 0 | G72: =IF(EXACT(Serviceability!F19, "Household 2"),Serviceability!L19,0) -> 0 | H72: Applicant / Guarantor 1 | I72: =Serviceability!G30 -> 0
A73: Applicant / Guarantor 2 | B73: =IF(EXACT(Serviceability!F14, "Household 1"),Serviceability!G14,0) -> 0 | C73: =IF(EXACT(Serviceability!F14, "Household 2"),Serviceability!G14,0) -> 150000 | E73: Applicant / Guarantor 2 | F73: =IF(EXACT(Serviceability!F20, "Household 1"),Serviceability!L20,0) -> 0 | G73: =IF(EXACT(Serviceability!F20, "Household 2"),Serviceability!L20,0) -> 0
A74: Applicant / Guarantor 3 | B74: =IF(EXACT(Serviceability!F15, "Household 1"),Serviceability!G15,0) -> 0 | C74: =IF(EXACT(Serviceability!F15, "Household 2"),Serviceability!G15,0) -> 0 | E74: Applicant / Guarantor 3 | F74: =IF(EXACT(Serviceability!F21, "Household 1"),Serviceability!L21,0) -> 0 | G74: =IF(EXACT(Serviceability!F21, "Household 2"),Serviceability!L21,0) -> 0
A75: Applicant / Guarantor 4 | B75: =IF(EXACT(Serviceability!F16, "Household 1"),Serviceability!G16,0) -> 0 | C75: =IF(EXACT(Serviceability!F16, "Household 2"),Serviceability!G16,0) -> 0 | E75: Applicant / Guarantor 4 | F75: =IF(EXACT(Serviceability!F22, "Household 1"),Serviceability!L22,0) -> 0 | G75: =IF(EXACT(Serviceability!F22, "Household 2"),Serviceability!L22,0) -> 0
A76: Applicant Totals | B76: =SUM(B72:B75,F76,I72) -> 100000 | C76: =SUM(C72:C75,G76) -> 150000 | E76: Applicant Totals | F76: =SUM(F72:F75)*12 -> 0 | G76: =SUM(G72:G75)*12 -> 0
A78: Adults - household | C78: =IF(C76<=59999,"test",IF(B3>93,"A",IF(B3>89,"A-",IF(B3>87,"B+",IF(B3>83,"B",IF(B3>79,"B-", IF(B3>77,"C+",IF(B3>73,"C",IF(B3>69,"C-",IF(B3>57,"D+",IF(B3>53,"D",IF(B3>49,"D-","")))))))))))) -> 
A79: Adults - household - new
A80: Dependant children - household
A82: Adult | B82: =Serviceability!G41 -> 1 | C82: =Serviceability!G43 -> 2 | E82: =IF(Serviceability!G41>2, "Please call 1300 722 462 for assistance with calculation "," ") ->  | N82: offset amount
A83: Dependent | B83: =Serviceability!G42 -> 2 | C83: =Serviceability!G44 -> 3 | E83: =IF(Serviceability!G43>2, "Please call 1300 722 462 for assistance with calculation "," ") -> 
B84: ="Adult-" & B82 & ",Dependents-" & B83 -> Adult-1,Dependents-2 | C84: ="Adult-" & C82 & ",Dependents-" & C83 -> Adult-2,Dependents-3
A86: LookupKey | B86: Household | C86: Income Range | D86: Living Expense
A87: =B87 & ":" & C87 -> Adult-1,Dependents-0:0-21000 | B87: Adult-1,Dependents-0 | C87: 0-21000 | D87: =251*52.2/12 -> 1091.85
A88: =B88 & ":" & C88 -> Adult-1,Dependents-0:21000-32000 | B88: Adult-1,Dependents-0 | C88: 21000-32000 | D88: =265*52.2/12 -> 1152.75
A89: Adult-1,Dependents-0:32001-43000 | B89: Adult-1,Dependents-0 | C89: 32001-43000 | D89: =280*52.2/12 -> 1218
A90: Adult-1,Dependents-0:43001-53000 | B90: Adult-1,Dependents-0 | C90: 43001-53000 | D90: =301*52.2/12 -> 1309.35
A91: Adult-1,Dependents-0:53001-64000 | B91: Adult-1,Dependents-0 | C91: 53001-64000 | D91: =338*52.2/12 -> 1470.3
A92: Adult-1,Dependents-0:64001-85000 | B92: Adult-1,Dependents-0 | C92: 64001-85000 | D92: =385*52.2/12 -> 1674.75
A93: Adult-1,Dependents-0:85001-107000 | B93: Adult-1,Dependents-0 | C93: 85001-107000 | D93: =459*52.2/12 -> 1996.65
A94: Adult-1,Dependents-0:107001-128000 | B94: Adult-1,Dependents-0 | C94: 107001-128000 | D94: =513*52.2/12 -> 2231.55
A95: Adult-1,Dependents-0:128001-150000 | B95: Adult-1,Dependents-0 | C95: 128001-150000 | D95: =603*52.2/12 -> 2623.05
A96: Adult-1,Dependents-0:150001-171000 | B96: Adult-1,Dependents-0 | C96: 150001-171000 | D96: =637*52.2/12 -> 2770.95
A97: Adult-1,Dependents-0:171001-214000 | B97: Adult-1,Dependents-0 | C97: 171001-214000 | D97: =676*52.2/12 -> 2940.6
A98: Adult-1,Dependents-0:214001-267000 | B98: Adult-1,Dependents-0 | C98: 214001-267000 | D98: =781*52.2/12 -> 3397.35
A99: Adult-1,Dependents-0:267001-321000 | B99: Adult-1,Dependents-0 | C99: 267001-321000 | D99: =912*52.2/12 -> 3967.2
A100: Adult-1,Dependents-0:321000+ | B100: Adult-1,Dependents-0 | C100: 321000+ | D100: =944*52.2/12 -> 4106.4
A102: Adult-1,Dependents-1:0-21000 | B102: Adult-1,Dependents-1 | C102: 0-21000 | D102: =354*52.2/12 -> 1539.9
A103: Adult-1,Dependents-1:21000-32000 | B103: Adult-1,Dependents-1 | C103: 21000-32000 | D103: =354*52.2/12 -> 1539.9
A104: Adult-1,Dependents-1:32001-43000 | B104: Adult-1,Dependents-1 | C104: 32001-43000 | D104: =369*52.2/12 -> 1605.15
A105: Adult-1,Dependents-1:43001-53000 | B105: Adult-1,Dependents-1 | C105: 43001-53000 | D105: =391*52.2/12 -> 1700.85
A106: Adult-1,Dependents-1:53001-64000 | B106: Adult-1,Dependents-1 | C106: 53001-64000 | D106: =428*52.2/12 -> 1861.8
A107: Adult-1,Dependents-1:64001-85000 | B107: Adult-1,Dependents-1 | C107: 64001-85000 | D107: =475*52.2/12 -> 2066.25
A108: Adult-1,Dependents-1:85001-107000 | B108: Adult-1,Dependents-1 | C108: 85001-107000 | D108: =549*52.2/12 -> 2388.15
A109: Adult-1,Dependents-1:107001-128000 | B109: Adult-1,Dependents-1 | C109: 107001-128000 | D109: =603*52.2/12 -> 2623.05
A110: Adult-1,Dependents-1:128001-150000 | B110: Adult-1,Dependents-1 | C110: 128001-150000 | D110: =693*52.2/12 -> 3014.55
A111: Adult-1,Dependents-1:150001-171000 | B111: Adult-1,Dependents-1 | C111: 150001-171000 | D111: =727*52.2/12 -> 3162.45
A112: Adult-1,Dependents-1:171001-214000 | B112: Adult-1,Dependents-1 | C112: 171001-214000 | D112: =766*52.2/12 -> 3332.1
A113: Adult-1,Dependents-1:214001-267000 | B113: Adult-1,Dependents-1 | C113: 214001-267000 | D113: =871*52.2/12 -> 3788.85
A114: Adult-1,Dependents-1:267001-321000 | B114: Adult-1,Dependents-1 | C114: 267001-321000 | D114: =1003*52.2/12 -> 4363.05
A115: Adult-1,Dependents-1:321000+ | B115: Adult-1,Dependents-1 | C115: 321000+ | D115: =1034*52.2/12 -> 4497.9
A117: =B117 & ":" & C117 -> Adult-1,Dependents-2:0-21000 | B117: Adult-1,Dependents-2 | C117: 0-21000 | D117: =445*52.2/12 -> 1935.75
A118: Adult-1,Dependents-2:21000-32000 | B118: Adult-1,Dependents-2 | C118: 21000-32000 | D118: =445*52.2/12 -> 1935.75
A119: Adult-1,Dependents-2:32001-43000 | B119: Adult-1,Dependents-2 | C119: 32001-43000 | D119: =460*52.2/12 -> 2001
A120: Adult-1,Dependents-2:43001-53000 | B120: Adult-1,Dependents-2 | C120: 43001-53000 | D120: =481*52.2/12 -> 2092.35
A121: Adult-1,Dependents-2:53001-64000 | B121: Adult-1,Dependents-2 | C121: 53001-64000 | D121: =519*52.2/12 -> 2257.65
A122: Adult-1,Dependents-2:64001-85000 | B122: Adult-1,Dependents-2 | C122: 64001-85000 | D122: =566*52.2/12 -> 2462.1
A123: Adult-1,Dependents-2:85001-107000 | B123: Adult-1,Dependents-2 | C123: 85001-107000 | D123: =640*52.2/12 -> 2784
A124: Adult-1,Dependents-2:107001-128000 | B124: Adult-1,Dependents-2 | C124: 107001-128000 | D124: =693*52.2/12 -> 3014.55
A125: Adult-1,Dependents-2:128001-150000 | B125: Adult-1,Dependents-2 | C125: 128001-150000 | D125: =784*52.2/12 -> 3410.4
A126: Adult-1,Dependents-2:150001-171000 | B126: Adult-1,Dependents-2 | C126: 150001-171000 | D126: =818*52.2/12 -> 3558.3
A127: Adult-1,Dependents-2:171001-214000 | B127: Adult-1,Dependents-2 | C127: 171001-214000 | D127: =857*52.2/12 -> 3727.95
A128: Adult-1,Dependents-2:214001-267000 | B128: Adult-1,Dependents-2 | C128: 214001-267000 | D128: =962*52.2/12 -> 4184.7
A129: Adult-1,Dependents-2:267001-321000 | B129: Adult-1,Dependents-2 | C129: 267001-321000 | D129: =1093*52.2/12 -> 4754.55
A130: Adult-1,Dependents-2:321000+ | B130: Adult-1,Dependents-2 | C130: 321000+ | D130: =1125*52.2/12 -> 4893.75
A132: =B132 & ":" & C132 -> Adult-1,Dependents-3:0-21000 | B132: Adult-1,Dependents-3 | C132: 0-21000 | D132: =552*52.2/12 -> 2401.2
A133: Adult-1,Dependents-3:21000-32000 | B133: Adult-1,Dependents-3 | C133: 21000-32000 | D133: =552*52.2/12 -> 2401.2
A134: Adult-1,Dependents-3:32001-43000 | B134: Adult-1,Dependents-3 | C134: 32001-43000 | D134: =552*52.2/12 -> 2401.2
A135: Adult-1,Dependents-3:43001-53000 | B135: Adult-1,Dependents-3 | C135: 43001-53000 | D135: =574*52.2/12 -> 2496.9
A136: Adult-1,Dependents-3:53001-64000 | B136: Adult-1,Dependents-3 | C136: 53001-64000 | D136: =612*52.2/12 -> 2662.2
A137: Adult-1,Dependents-3:64001-85000 | B137: Adult-1,Dependents-3 | C137: 64001-85000 | D137: =659*52.2/12 -> 2866.65
A138: Adult-1,Dependents-3:85001-107000 | B138: Adult-1,Dependents-3 | C138: 85001-107000 | D138: =733*52.2/12 -> 3188.55
A139: Adult-1,Dependents-3:107001-128000 | B139: Adult-1,Dependents-3 | C139: 107001-128000 | D139: =(787)*52.2/12 -> 3423.45
A140: Adult-1,Dependents-3:128001-150000 | B140: Adult-1,Dependents-3 | C140: 128001-150000 | D140: =(878)*52.2/12 -> 3819.3
A141: Adult-1,Dependents-3:150001-171000 | B141: Adult-1,Dependents-3 | C141: 150001-171000 | D141: =(912)*52.2/12 -> 3967.2
A142: Adult-1,Dependents-3:171001-214000 | B142: Adult-1,Dependents-3 | C142: 171001-214000 | D142: =(951)*52.2/12 -> 4136.85
A143: Adult-1,Dependents-3:214001-267000 | B143: Adult-1,Dependents-3 | C143: 214001-267000 | D143: =(1056)*52.2/12 -> 4593.6
A144: Adult-1,Dependents-3:267001-321000 | B144: Adult-1,Dependents-3 | C144: 267001-321000 | D144: =(1188)*52.2/12 -> 5167.8
A145: Adult-1,Dependents-3:321000+ | B145: Adult-1,Dependents-3 | C145: 321000+ | D145: =(1220)*52.2/12 -> 5307
A148: =B148 & ":" & C148 -> Adult-1,Dependents-4:0-21000 | B148: Adult-1,Dependents-4 | C148: 0-21000 | D148: =(552+93)*52.2/12 -> 2805.75
A149: Adult-1,Dependents-4:21000-32000 | B149: Adult-1,Dependents-4 | C149: 21000-32000 | D149: =(552+93)*52.2/12 -> 2805.75
A150: Adult-1,Dependents-4:32001-43000 | B150: Adult-1,Dependents-4 | C150: 32001-43000 | D150: =(552+93)*52.2/12 -> 2805.75
A151: Adult-1,Dependents-4:43001-53000 | B151: Adult-1,Dependents-4 | C151: 43001-53000 | D151: =(574+93)*52.2/12 -> 2901.45
A152: Adult-1,Dependents-4:53001-64000 | B152: Adult-1,Dependents-4 | C152: 53001-64000 | D152: =(612+93)*52.2/12 -> 3066.75
A153: Adult-1,Dependents-4:64001-85000 | B153: Adult-1,Dependents-4 | C153: 64001-85000 | D153: =(659+93)*52.2/12 -> 3271.2
A154: Adult-1,Dependents-4:85001-107000 | B154: Adult-1,Dependents-4 | C154: 85001-107000 | D154: =(733+93)*52.2/12 -> 3593.1
A155: Adult-1,Dependents-4:107001-128000 | B155: Adult-1,Dependents-4 | C155: 107001-128000 | D155: =(787+94)*52.2/12 -> 3832.35
A156: Adult-1,Dependents-4:128001-150000 | B156: Adult-1,Dependents-4 | C156: 128001-150000 | D156: =(878+94)*52.2/12 -> 4228.2
A157: Adult-1,Dependents-4:150001-171000 | B157: Adult-1,Dependents-4 | C157: 150001-171000 | D157: =(912+94)*52.2/12 -> 4376.1
A158: Adult-1,Dependents-4:171001-214000 | B158: Adult-1,Dependents-4 | C158: 171001-214000 | D158: =(951+94)*52.2/12 -> 4545.75
A159: Adult-1,Dependents-4:214001-267000 | B159: Adult-1,Dependents-4 | C159: 214001-267000 | D159: =(1056+95)*52.2/12 -> 5006.85
A160: Adult-1,Dependents-4:267001-321000 | B160: Adult-1,Dependents-4 | C160: 267001-321000 | D160: =(1188+95)*52.2/12 -> 5581.05
A161: Adult-1,Dependents-4:321000+ | B161: Adult-1,Dependents-4 | C161: 321000+ | D161: =(1220+95)*52.2/12 -> 5720.25
A163: =B163 & ":" & C163 -> Adult-1,Dependents-5:0-21000 | B163: Adult-1,Dependents-5 | C163: 0-21000 | D163: =(612+93+93)*52.2/12 -> 3471.3
A164: Adult-1,Dependents-5:21000-32000 | B164: Adult-1,Dependents-5 | C164: 21000-32000 | D164: =(612+93+93)*52.2/12 -> 3471.3
A165: Adult-1,Dependents-5:32001-43000 | B165: Adult-1,Dependents-5 | C165: 32001-43000 | D165: =(612+93+93)*52.2/12 -> 3471.3
A166: Adult-1,Dependents-5:43001-53000 | B166: Adult-1,Dependents-5 | C166: 43001-53000 | D166: =(612+93+93)*52.2/12 -> 3471.3
A167: Adult-1,Dependents-5:53001-64000 | B167: Adult-1,Dependents-5 | C167: 53001-64000 | D167: =(612+93+93)*52.2/12 -> 3471.3
A168: Adult-1,Dependents-5:64001-85000 | B168: Adult-1,Dependents-5 | C168: 64001-85000 | D168: =(659+93+93)*52.2/12 -> 3675.75
A169: Adult-1,Dependents-5:85001-107000 | B169: Adult-1,Dependents-5 | C169: 85001-107000 | D169: =(733+93+93)*52.2/12 -> 3997.65
A170: Adult-1,Dependents-5:107001-128000 | B170: Adult-1,Dependents-5 | C170: 107001-128000 | D170: =(787+94+94)*52.2/12 -> 4241.25
A171: Adult-1,Dependents-5:128001-150000 | B171: Adult-1,Dependents-5 | C171: 128001-150000 | D171: =(878+94+94)*52.2/12 -> 4637.1
A172: Adult-1,Dependents-5:150001-171000 | B172: Adult-1,Dependents-5 | C172: 150001-171000 | D172: =(912+94+94)*52.2/12 -> 4785
A173: Adult-1,Dependents-5:171001-214000 | B173: Adult-1,Dependents-5 | C173: 171001-214000 | D173: =(951+94+94)*52.2/12 -> 4954.65
A174: Adult-1,Dependents-5:214001-267000 | B174: Adult-1,Dependents-5 | C174: 214001-267000 | D174: =(1056+95+95)*52.2/12 -> 5420.1
A175: Adult-1,Dependents-5:267001-321000 | B175: Adult-1,Dependents-5 | C175: 267001-321000 | D175: =(1188+95+95)*52.2/12 -> 5994.3
A176: Adult-1,Dependents-5:321000+ | B176: Adult-1,Dependents-5 | C176: 321000+ | D176: =(1220+95+95)*52.2/12 -> 6133.5
A178: =B178 & ":" & C178 -> Adult-1,Dependents-6:0-21000 | B178: Adult-1,Dependents-6 | C178: 0-21000 | D178: =(659+93+93)*52.2/12 -> 3675.75
A179: Adult-1,Dependents-6:21000-32000 | B179: Adult-1,Dependents-6 | C179: 21000-32000 | D179: 3675.75
A180: Adult-1,Dependents-6:32001-43000 | B180: Adult-1,Dependents-6 | C180: 32001-43000 | D180: 3675.75
A181: Adult-1,Dependents-6:43001-53000 | B181: Adult-1,Dependents-6 | C181: 43001-53000 | D181: 3675.75
A182: Adult-1,Dependents-6:53001-64000 | B182: Adult-1,Dependents-6 | C182: 53001-64000 | D182: 3675.75
A183: Adult-1,Dependents-6:64001-85000 | B183: Adult-1,Dependents-6 | C183: 64001-85000 | D183: 3675.75
A184: Adult-1,Dependents-6:85001-107000 | B184: Adult-1,Dependents-6 | C184: 85001-107000 | D184: =(733+93+93+93)*52.2/12 -> 4402.2
A185: Adult-1,Dependents-6:107001-128000 | B185: Adult-1,Dependents-6 | C185: 107001-128000 | D185: =(787+94+94+94)*52.2/12 -> 4650.15
A186: Adult-1,Dependents-6:128001-150000 | B186: Adult-1,Dependents-6 | C186: 128001-150000 | D186: =(878+94+94+94)*52.2/12 -> 5046
A187: Adult-1,Dependents-6:150001-171000 | B187: Adult-1,Dependents-6 | C187: 150001-171000 | D187: =(912+94+94+94)*52.2/12 -> 5193.9
A188: Adult-1,Dependents-6:171001-214000 | B188: Adult-1,Dependents-6 | C188: 171001-214000 | D188: =(951+94+94+94)*52.2/12 -> 5363.55
A189: Adult-1,Dependents-6:214001-267000 | B189: Adult-1,Dependents-6 | C189: 214001-267000 | D189: =(1056+95+95+95)*52.2/12 -> 5833.35
A190: Adult-1,Dependents-6:267001-321000 | B190: Adult-1,Dependents-6 | C190: 267001-321000 | D190: =(1188+95+95+95)*52.2/12 -> 6407.55
A191: Adult-1,Dependents-6:321000+ | B191: Adult-1,Dependents-6 | C191: 321000+ | D191: =(1220+95+95+95)*52.2/12 -> 6546.75
A193: =B193 & ":" & C193 -> Adult-2,Dependents-0:0-21000 | B193: Adult-2,Dependents-0 | C193: 0-21000 | D193: =487*52.2/12 -> 2118.45
A194: =B194 & ":" & C194 -> Adult-2,Dependents-0:21000-32000 | B194: Adult-2,Dependents-0 | C194: 21000-32000 | D194: =487*52.2/12 -> 2118.45
A195: Adult-2,Dependents-0:32001-43000 | B195: Adult-2,Dependents-0 | C195: 32001-43000 | D195: =502*52.2/12 -> 2183.7
A196: Adult-2,Dependents-0:43001-53000 | B196: Adult-2,Dependents-0 | C196: 43001-53000 | D196: =523*52.2/12 -> 2275.05
A197: Adult-2,Dependents-0:53001-64000 | B197: Adult-2,Dependents-0 | C197: 53001-64000 | D197: =561*52.2/12 -> 2440.35
A198: Adult-2,Dependents-0:64001-85000 | B198: Adult-2,Dependents-0 | C198: 64001-85000 | D198: =608*52.2/12 -> 2644.8
A199: Adult-2,Dependents-0:85001-107000 | B199: Adult-2,Dependents-0 | C199: 85001-107000 | D199: =682*52.2/12 -> 2966.7
A200: Adult-2,Dependents-0:107001-128000 | B200: Adult-2,Dependents-0 | C200: 107001-128000 | D200: =735*52.2/12 -> 3197.25
A201: Adult-2,Dependents-0:128001-150000 | B201: Adult-2,Dependents-0 | C201: 128001-150000 | D201: =826*52.2/12 -> 3593.1
A202: Adult-2,Dependents-0:150001-171000 | B202: Adult-2,Dependents-0 | C202: 150001-171000 | D202: =860*52.2/12 -> 3741
A203: Adult-2,Dependents-0:171001-214000 | B203: Adult-2,Dependents-0 | C203: 171001-214000 | D203: =899*52.2/12 -> 3910.65
A204: Adult-2,Dependents-0:214001-267000 | B204: Adult-2,Dependents-0 | C204: 214001-267000 | D204: =1004*52.2/12 -> 4367.4
A205: Adult-2,Dependents-0:267001-321000 | B205: Adult-2,Dependents-0 | C205: 267001-321000 | D205: =1135*52.2/12 -> 4937.25
A206: Adult-2,Dependents-0:321000+ | B206: Adult-2,Dependents-0 | C206: 321000+ | D206: =1167*52.2/12 -> 5076.45
A208: =B208 & ":" & C208 -> Adult-2,Dependents-1:0-21000 | B208: Adult-2,Dependents-1 | C208: 0-21000 | D208: =578*52.2/12 -> 2514.3
A209: Adult-2,Dependents-1:21000-32000 | B209: Adult-2,Dependents-1 | C209: 21000-32000 | D209: =578*52.2/12 -> 2514.3
A210: Adult-2,Dependents-1:32001-43000 | B210: Adult-2,Dependents-1 | C210: 32001-43000 | D210: =578*52.2/12 -> 2514.3
A211: Adult-2,Dependents-1:43001-53000 | B211: Adult-2,Dependents-1 | C211: 43001-53000 | D211: =599*52.2/12 -> 2605.65
A212: Adult-2,Dependents-1:53001-64000 | B212: Adult-2,Dependents-1 | C212: 53001-64000 | D212: =637*52.2/12 -> 2770.95
A213: Adult-2,Dependents-1:64001-85000 | B213: Adult-2,Dependents-1 | C213: 64001-85000 | D213: =684*52.2/12 -> 2975.4
A214: Adult-2,Dependents-1:85001-107000 | B214: Adult-2,Dependents-1 | C214: 85001-107000 | D214: =757*52.2/12 -> 3292.95
A215: Adult-2,Dependents-1:107001-128000 | B215: Adult-2,Dependents-1 | C215: 107001-128000 | D215: =811*52.2/12 -> 3527.85
A216: Adult-2,Dependents-1:128001-150000 | B216: Adult-2,Dependents-1 | C216: 128001-150000 | D216: =901*52.2/12 -> 3919.35
A217: Adult-2,Dependents-1:150001-171000 | B217: Adult-2,Dependents-1 | C217: 150001-171000 | D217: =935*52.2/12 -> 4067.25
A218: Adult-2,Dependents-1:171001-214000 | B218: Adult-2,Dependents-1 | C218: 171001-214000 | D218: =974*52.2/12 -> 4236.9
A219: Adult-2,Dependents-1:214001-267000 | B219: Adult-2,Dependents-1 | C219: 214001-267000 | D219: =1079*52.2/12 -> 4693.65
A220: Adult-2,Dependents-1:267001-321000 | B220: Adult-2,Dependents-1 | C220: 267001-321000 | D220: =1210*52.2/12 -> 5263.5
A221: Adult-2,Dependents-1:321000+ | B221: Adult-2,Dependents-1 | C221: 321000+ | D221: =1241*52.2/12 -> 5398.35
A223: =B223 & ":" & C223 -> Adult-2,Dependents-2:0-21000 | B223: Adult-2,Dependents-2 | C223: 0-21000 | D223: =636*52.2/12 -> 2766.6
A224: Adult-2,Dependents-2:21000-32000 | B224: Adult-2,Dependents-2 | C224: 21000-32000 | D224: =636*52.2/12 -> 2766.6
A225: Adult-2,Dependents-2:32001-43000 | B225: Adult-2,Dependents-2 | C225: 32001-43000 | D225: =636*52.2/12 -> 2766.6
A226: Adult-2,Dependents-2:43001-53000 | B226: Adult-2,Dependents-2 | C226: 43001-53000 | D226: =657*52.2/12 -> 2857.95
A227: Adult-2,Dependents-2:53001-64000 | B227: Adult-2,Dependents-2 | C227: 53001-64000 | D227: =694*52.2/12 -> 3018.9
A228: Adult-2,Dependents-2:64001-85000 | B228: Adult-2,Dependents-2 | C228: 64001-85000 | D228: =741*52.2/12 -> 3223.35
A229: Adult-2,Dependents-2:85001-107000 | B229: Adult-2,Dependents-2 | C229: 85001-107000 | D229: =815*52.2/12 -> 3545.25
A230: Adult-2,Dependents-2:107001-128000 | B230: Adult-2,Dependents-2 | C230: 107001-128000 | D230: =868*52.2/12 -> 3775.8
A231: Adult-2,Dependents-2:128001-150000 | B231: Adult-2,Dependents-2 | C231: 128001-150000 | D231: =959*52.2/12 -> 4171.65
A232: Adult-2,Dependents-2:150001-171000 | B232: Adult-2,Dependents-2 | C232: 150001-171000 | D232: =993*52.2/12 -> 4319.55
A233: Adult-2,Dependents-2:171001-214000 | B233: Adult-2,Dependents-2 | C233: 171001-214000 | D233: =1032*52.2/12 -> 4489.2
A234: Adult-2,Dependents-2:214001-267000 | B234: Adult-2,Dependents-2 | C234: 214001-267000 | D234: =1136*52.2/12 -> 4941.6
A235: Adult-2,Dependents-2:267001-321000 | B235: Adult-2,Dependents-2 | C235: 267001-321000 | D235: =1268*52.2/12 -> 5515.8
A236: Adult-2,Dependents-2:321000+ | B236: Adult-2,Dependents-2 | C236: 321000+ | D236: =1299*52.2/12 -> 5650.65
A238: =B238 & ":" & C238 -> Adult-2,Dependents-3:0-21000 | B238: Adult-2,Dependents-3 | C238: 0-21000 | D238: =720*52.2/12 -> 3132
... 63 more rows

Sheet Serviceability Calc (hidden)
A1: Serviceability Cell Calculation
B3: =Serviceability!D49&" (After Tax Rates Applied)" -> Available Income (After Tax Rates Applied) | C3: =Serviceability!L49 -> 7949.597135
B4: Divided by
B5: =Serviceability!D71 -> Total Monthly Commitments | C5: =SUM(Serviceability!L55:L70) -> 0
A6: Less | B6: =Serviceability!$D$53&" - "&Serviceability!E55 -> RedZed Loan Applied For - Loan 1 | C6: =-Serviceability!L55 -> 0
A7: Less | B7: =Serviceability!$D$53&" - "&Serviceability!E56 -> RedZed Loan Applied For - Loan 2 | C7: =-Serviceability!L56 -> 0
A8: Plus | B8: =Serviceability!$D$53&" - "&Tables!A32 -> RedZed Loan Applied For - Buffered Loan 1 | C8: =Tables!B32 -> 0
A9: Plus | B9: =Serviceability!$D$53&" - "&Tables!A33 -> RedZed Loan Applied For - Buffered Loan 2 | C9: =Tables!B33 -> 0
A10: Less | B10: =Serviceability!$D$59&": "&Serviceability!E59 -> Existing Loans: Loan 1 - Existing Secured | C10: =-Serviceability!L59 -> 0
A11: Less | B11: =Serviceability!$D$59&": "&Serviceability!E60 -> Existing Loans: Loan 2 - Existing Secured | C11: =-Serviceability!L60 -> 0
A12: Plus | B12: =Serviceability!$D$59&": "&Tables!A37 -> Existing Loans: Buffered Loan 1 | C12: =Tables!C37 -> 0
A13: Plus | B13: =Serviceability!$D$59&": "&Tables!A38 -> Existing Loans: Buffered Loan 2 | C13: =Tables!C38 -> 0
A14: Plus | B14: =Tables!A42 -> Fees - Loan 1 | C14: =Tables!C42 -> 0
A15: Plus | B15: =Tables!A43 -> Fees - Loan 2 | C15: =Tables!C43 -> 0
B17: Total Monthly Commitments (After Repayment Buffering & Fees) | C17: =SUM(C5:C16) -> 0
B19: =Serviceability!I74&" - Calculated as:" -> - Calculated as: | C19: =ROUNDUP(C3/C17,2) -> 

Sheet Tax Calc (hidden)
A1: Tax Calc
A3: Annual Gross | D3: Gross | E3: Tax | F3: Medicare | G3: Income offset | H3: Net | I3: Net Monthly
A5: Applicant / G'Tor 1 | B5: Salary / Self Employed | D5: =Serviceability!G13 -> 100000 | E5: =IF(D5<Tables!$A$6,0,IF(AND(D5>Tables!$A$6,D5<Tables!$A$7),(D5-Tables!$A$6)*Tables!$C$6,IF(AND(D5>Tables!$A$7,D5<Tables!$A$8),Tables!$D$7+(D5-Tables!$A$7)*Tables!$C$7,IF(AND(D5>Tables!$A$8,D5<Tables!$A$9),Tables!$D$8+(D5-Tables!$A$8)*Tables!$C$8,IF(D5>Tables!$A$9,Tables!$D$9+(D5-Tables!$A$9)*Tables!$C$9))))) -> 22966.675 | F5: =D5*Tables!C$16 -> 2000 | G5: =IFERROR(((D5-VLOOKUP(D5,$A$29:$D$33,1,TRUE))*VLOOKUP(D5,$A$29:$D$33,3,TRUE)+VLOOKUP(D5,$A$29:$D$33,4,TRUE)),0)+IFERROR((IF(D5>66667,66667-45001,(D5-VLOOKUP(D5,$A$41:$D$43,1,TRUE)))*VLOOKUP(D5,$A$41:$D$43,3,TRUE)+VLOOKUP(D5,$A$41:$D$43,4,TRUE)),0) -> 780.04 | H5: =D5-E5-F5+G5 -> 75813.365 | I5: =H5/12 -> 6317.780417
A6: Applicant / G'Tor 2 | B6: Salary / Self Employed | D6: =Serviceability!G14 -> 150000 | E6: =IF(D6<Tables!$A$6,0,IF(AND(D6>=Tables!$A$6,D6<Tables!$A$7),(D6-Tables!$A$6)*Tables!$C$6,IF(AND(D6>=Tables!$A$7,D6<Tables!$A$8),Tables!$D$7+(D6-Tables!$A$7)*Tables!$C$7,IF(AND(D6>=Tables!$A$8,D6<Tables!$A$9),Tables!$D$8+(D6-Tables!$A$8)*Tables!$C$8,IF(D6>=Tables!$A$9,Tables!$D$9+(D6-Tables!$A$9)*Tables!$C$9))))) -> 40566.63 | F6: =D6*Tables!C$16 -> 3000 | G6: =IFERROR(((D6-VLOOKUP(D6,$A$29:$D$33,1,TRUE))*VLOOKUP(D6,$A$29:$D$33,3,TRUE)+VLOOKUP(D6,$A$29:$D$33,4,TRUE)),0)+IFERROR((IF(D6>66667,66667-45001,(D6-VLOOKUP(D6,$A$41:$D$43,1,TRUE)))*VLOOKUP(D6,$A$41:$D$43,3,TRUE)+VLOOKUP(D6,$A$41:$D$43,4,TRUE)),0) -> 0.01 | H6: =D6-E6-F6+G6 -> 106433.38 | I6: =H6/12 -> 8869.448333
A7: Applicant / G'Tor 3 | B7: Salary / Self Employed | D7: =Serviceability!G15 -> 0 | E7: =IF(D7<Tables!$A$6,0,IF(AND(D7>=Tables!$A$6,D7<Tables!$A$7),(D7-Tables!$A$6)*Tables!$C$6,IF(AND(D7>=Tables!$A$7,D7<Tables!$A$8),Tables!$D$7+(D7-Tables!$A$7)*Tables!$C$7,IF(AND(D7>=Tables!$A$8,D7<Tables!$A$9),Tables!$D$8+(D7-Tables!$A$8)*Tables!$C$8,IF(D7>=Tables!$A$9,Tables!$D$9+(D7-Tables!$A$9)*Tables!$C$9))))) -> 0 | F7: =D7*Tables!C$16 -> 0 | G7: 0 | H7: 0 | I7: =H7/12 -> 0
A8: Applicant / G'Tor 4 | B8: Salary / Self Employed | D8: =Serviceability!G16 -> 0 | E8: =IF(D8<Tables!$A$6,0,IF(AND(D8>=Tables!$A$6,D8<Tables!$A$7),(D8-Tables!$A$6)*Tables!$C$6,IF(AND(D8>=Tables!$A$7,D8<Tables!$A$8),Tables!$D$7+(D8-Tables!$A$7)*Tables!$C$7,IF(AND(D8>=Tables!$A$8,D8<Tables!$A$9),Tables!$D$8+(D8-Tables!$A$8)*Tables!$C$8,IF(D8>=Tables!$A$9,Tables!$D$9+(D8-Tables!$A$9)*Tables!$C$9))))) -> 0 | F8: =D8*Tables!C$16 -> 0 | G8: 0 | H8: 0 | I8: =H8/12 -> 0
A19: Test lower and middle income offset | D19: Formula | E19: ( income - income lower range ) *offset rate + baseline
A21: income | B21: offset baseline | C21: Income lower range | D21: Income - Lower range | E21: offset reduced % | F21: offset reduced amount | G21: offset amount
A22: 80000 | B22: =VLOOKUP(A22,A29:D33,4,TRUE) -> 1080 | C22: =VLOOKUP(A22,A29:D33,1,TRUE) -> 48001 | D22: =A22-C22 -> 31999 | E22: =VLOOKUP(A22,A29:D33,3,TRUE) -> 0 | F22: =+D22*E22 -> 0 | G22: =SUM(B22,F22) -> 1080
A26: Lower and Middle income offset
A28: Wages Over | B28: Not to Exceed | C28: Tax Rate
A29: 1 | B29: 37000 | D29: 255
A30: =B29+1 -> 37001 | B30: 48000 | C30: 0.075 | D30: 255
A31: =B30+1 -> 48001 | B31: 90000 | C31: 0 | D31: 1080
A32: =B31+1 -> 90001 | B32: 126000 | C32: -0.03 | D32: 1080
A33: =B32+1 -> 126001 | C33: 0 | D33: 0
A38: Low Income offset
A40: Wages Over | B40: Not to Exceed | C40: Tax Rate
A41: 1 | B41: 37500 | D41: 700 | K41: =I41*52 -> 0
A42: =B41+1 -> 37501 | B42: 45000 | C42: -0.05 | D42: 700
A43: =B42+1 -> 45001 | B43: 66667 | C43: -0.015 | D43: 325
A48: Test low income
A50: income | B50: offset baseline | C50: Income lower range | D50: Income - Lower range | E50: offset reduced % | F50: offset reduced amount | G50: offset amount
A51: 80000 | B51: =VLOOKUP(A51,A41:D43,4,TRUE) -> 325 | C51: =VLOOKUP(A51,A41:D43,1,TRUE) -> 45001 | D51: =IF(A51>66667, 66667-45001, A51-C51) -> 21666 | E51: =VLOOKUP(A51,A41:D43,3,TRUE) -> -0.015 | F51: =+D51*E51 -> -324.99 | G51: =SUM(B51,F51) -> 0.01

Sheet User Problems (hidden)
A1: # | B1: Date | C1: Submitted By | D1: Sheet Name (if applicable) | E1: Problem | F1: Initial Review Assessment | G1: Review Result Date | H1: Review With User | I1: Review Result or Action to Take | J1: Sheets Affected | K1: Development Version # | L1: Type | M1: Estimate (hrs) | N1: Actual | O1: Status | P1: Date Unit Tested | Q1: Release Version #
A2: 1 | B2: 2017-04-06 | C2: Bill Slattery | E2: What we are trying to achieve is a stress test of servicing capacity at the higher of; 1. The selected interest rate + 2% or 2. 7% This change should only apply to Residential loans. | K2: ='Version Control'!C2 -> V6.4 Test | L2: Enhancement | O2: Completed | P2: 2017-04-10 | Q2: ='Version Control'!$C$9 -> v6.5
A3: 2 | B3: 2017-04-10 | C3: Trevor Smith | E3: The tax table in the Residential calculator is not the same as in the Consolidated Calculator. Looks like the Residential Calculator was not updated for the 2017/2018 change to the upper limit for the 32.5% rate (ie from $80000 to $87000). | F3: Change the tax table in the Residential Calculator in expectation you want it to match that in the Consolidated Calculator. | G3: 2017-04-10 | H3: Bill Slattery | I3: Change as recommended | K3: ='Version Control'!C3 -> V6.4 Test2 (v6.42) | L3: Bug | O3: Completed | P3: 2017-04-10 | Q3: ='Version Control'!$C$9 -> v6.5
A4: 3 | B4: 2017-04-24 | C4: Bill Slattery | D4: Serviceability Calc | E4: Add Serviceabilty Calculation Sheet as per Consolidated User Problem #131. | F4: Name as "Serviceability Calc" | K4: ='Version Control'!$C$4 -> V6.6 Test (v6.43) | L4: Enhancement | O4: Completed | P4: 2017-05-01 | Q4: ='Version Control'!$C$9 -> v6.5
A5: 4 | B5: 2017-04-24 | C5: Mario Lorenzi | E5: Add two macros: -Ctl/Shift/B to unhide the calculation sheets -Ctl/Shift/H to hide the calculation sheets | K5: ='Version Control'!$C$4 -> V6.6 Test (v6.43) | L5: Enhancement | O5: Completed | P5: 2017-05-01 | Q5: ='Version Control'!$C$9 -> v6.5
A6: 5 | B6: 2017-04-24 | C6: Mario Lorenzi | D6: Tables | E6: Change Company Tax Rate to 28.5% | F6: Set up a a new Company Tax Table on Tables sheet. Change Company Income Calculation (Cell K18) to reference the new Company Tax Table. | K6: ='Version Control'!$C$4 -> V6.6 Test (v6.43) | L6: Data Maintenance | O6: Completed | P6: 2017-05-01 | Q6: ='Version Control'!$C$9 -> v6.5
A7: 6 | B7: 2017-04-24 | C7: Mario Lorenzi | D7: Serviceability | E7: Add Interest Only Term cells for RedZed Loans 1 and 2 on Serviceability sheet. Change the Rate buffering calculation to use the net term (Total Term less Interest Only Term) | K7: ='Version Control'!$C$4 -> V6.6 Test (v6.43) | L7: Enhancement | O7: Completed | P7: 2017-05-01 | Q7: ='Version Control'!$C$9 -> v6.5
A8: 7 | B8: 2017-04-24 | C8: Mario Lorenzi | D8: Serviceability | E8: Add Source of Other Incomes cell for each of the Other Regular Monthly Income lines on the Serviceability sheets. | K8: ='Version Control'!$C$4 -> V6.6 Test (v6.43) | L8: Enhancement | O8: Completed | P8: 2017-05-01 | Q8: ='Version Control'!$C$9 -> v6.5
A9: 8 | B9: 2017-04-24 | C9: Mario Lorenzi | D9: Serviceability | E9: Change Company Income heading to display "Company Income (if applicable)" | K9: ='Version Control'!$C$4 -> V6.6 Test (v6.43) | L9: Enhancement | O9: Completed | P9: 2017-05-01 | Q9: ='Version Control'!$C$9 -> v6.5
A10: 9 | B10: 2017-04-24 | C10: Mario Lorenzi | D10: Serviceability | E10: Swap columns displaying Existing & New v Rental Income/Rental Income | K10: ='Version Control'!$C$4 -> V6.6 Test (v6.43) | L10: Enhancement | O10: Completed | P10: 2017-05-01 | Q10: ='Version Control'!$C$9 -> v6.5
A11: 10 | B11: 2017-04-24 | C11: Mario Lorenzi | D11: Tables | E11: Check Monthly Service Fee calculation - to assume entry of Residential Loans only - calculated at $15 per month | K11: ='Version Control'!$C$4 -> V6.6 Test (v6.43) | L11: Bug | O11: Completed | P11: 2017-05-01 | Q11: ='Version Control'!$C$9 -> v6.5
A12: 11 | B12: 2017-04-24 | C12: Mario Lorenzi | D12: Serviceability | E12: Company Income headings realigned to display above the detail line | K12: ='Version Control'!$C$4 -> V6.6 Test (v6.43) | L12: Enhancement | O12: Completed | P12: 2017-05-01 | Q12: ='Version Control'!$C$9 -> v6.5
A13: 12 | B13: 2017-04-24 | C13: Mario Lorenzi | D13: Serviceability | E13: Company Income section moved to display after Rental Income | K13: ='Version Control'!$C$4 -> V6.6 Test (v6.43) | L13: Enhancement | O13: Completed | P13: 2017-05-01 | Q13: ='Version Control'!$C$9 -> v6.5
A14: 13 | B14: 2017-04-24 | C14: Mario Lorenzi | D14: Serviceability | E14: Change Personal Income descriptors from "Guarantor 1, 2, 3, and 4" to "Applicant / Guarantor 1, 2, 3, and 4" | K14: ='Version Control'!$C$4 -> V6.6 Test (v6.43) | L14: Enhancement | O14: Completed | P14: 2017-05-01 | Q14: ='Version Control'!$C$9 -> v6.5
A15: 14 | B15: 2017-04-24 | C15: Mario Lorenzi | D15: Tables | E15: Tables Sheet - Highlight in yellow those data cells that can be changed to reflect legislation or company policy changes. | K15: ='Version Control'!$C$4 -> V6.6 Test (v6.43) | L15: Enhancement | O15: Completed | P15: 2017-05-01 | Q15: ='Version Control'!$C$9 -> v6.5
A16: 15 | B16: 2017-06-08 | C16: Mario Lorenzi | D16: Tax Calc | E16: Tax Calc Sheet - delete Other Income Cells A10 to I13 | K16: ='Version Control'!$C$5 -> V6.8 Test (v6.44) | L16: Enhancement | O16: Completed | P16: 2017-06-15 | Q16: ='Version Control'!$C$9 -> v6.5
A17: 16 | B17: 2017-06-08 | C17: Mario Lorenzi | D17: Tax Calc | E17: Tax Calc Sheet - delete "Correct Formula For Serviceability - Don’t Think Arm Can Do This" Cells L1 to R25 | K17: ='Version Control'!$C$5 -> V6.8 Test (v6.44) | L17: Enhancement | O17: Completed | P17: 2017-06-15 | Q17: ='Version Control'!$C$9 -> v6.5
A18: 17 | B18: 2017-06-08 | C18: Mario Lorenzi | D18: Serviceability | E18: Fix formatting of Financier Cells for Existing Loans | K18: ='Version Control'!$C$5 -> V6.8 Test (v6.44) | L18: Bug | O18: Completed | P18: 2017-06-15 | Q18: ='Version Control'!$C$9 -> v6.5
A19: 18 | B19: 2017-06-19 | C19: Trevor Smith | D19: User Problems Version Control | E19: Add Sheets for User Problems and Version Control. | K19: ='Version Control'!$C$6 -> V6.9 (v6.45) | L19: Enhancement | O19: Completed | P19: 2017-06-20 | Q19: ='Version Control'!$C$9 -> v6.5
A20: 19 | B20: 2017-06-19 | C20: Angelo Klidomitis | D20: Serviceability | E20: Change Look & Feel as per 4.0 ServiceabilityCalculator.xlsx | K20: ='Version Control'!$C$6 -> V6.9 (v6.45) | L20: Enhancement | O20: Completed | P20: 2017-06-21 | Q20: ='Version Control'!$C$9 -> v6.5
A21: 20 | B21: 2017-05-22 | C21: Mario Lorenzi & Bill Slattery | D21: Serviceability | E21: Increase readability of printed version of the sheet | K21: ='Version Control'!C7 -> V6.10 (v6.46) | L21: Enhancement | O21: Completed | P21: 2017-06-26 | Q21: ='Version Control'!$C$9 -> v6.5
A22: 21 | B22: 2017-06-29 | C22: Mario Lorenzi | D22: Serviceability | E22: 1) Borders missing for Enter Source of Income, Rental Income, Maintenance, & Other Fixed Monthly Repayments. 2) Enter a zero in each dollar entry cell so the user is aware it is available for entry. | K22: ='Version Control'!C8 -> v6.47 Pending | L22: Enhancement & Bug | O22: Completed | P22: 2017-06-29 | Q22: ='Version Control'!$C$9 -> v6.5
A23: 22 | B23: 2018-11-20 | C23: Lorraine Taylor | D23: Servicebility | E23: IF more then three adult in one household please display the mssage | K23: V7.3 | O23: Completed | P23: 2018-11-20 | Q23: V7.3
A24: 23
A25: 24
A26: 25
A27: 26
A28: 27
A29: 28
A30: 29
A31: 30
A32: 31
A33: 32
A34: 33

Sheet Version Control (hidden)
A1: Name | B1: Date | C1: Version # | D1: Development Version File Name | E1: Changes | F1: Released Version | H1: Current Version | I1: =VLOOKUP($J$1,B2:$I$3983,8,FALSE) -> V10.12 210115 | J1: =MAX(B2:B3983) -> 2021-01-15
A2: Trevor Smith | B2: 2017-04-10 | C2: V6.4 Test | D2: K:\IT\Change_Work Requests\Work Request\WR004 - Commercial Calculator\02 Residential Calculator\2017 05 Changes\4. REDZED-Serviceability-170410-V6.4 Test2.xls | E2: User Problem 1 | G2: =IFERROR(VLOOKUP(MONTH(B2),'Day and Months Table'!A:B,2,FALSE)&VLOOKUP(DAY(B2),'Day and Months Table'!A:B,2,FALSE),"N/A") -> 0410 | H2: =RIGHT(YEAR(B2),2)&G2 -> 170410 | I2: =CONCATENATE(C2," ",H2) -> V6.4 Test 170410
A3: Trevor Smith | B3: 2017-04-10 | C3: V6.4 Test2 (v6.42) | D3: K:\IT\Change_Work Requests\Work Request\WR004 - Commercial Calculator\02 Residential Calculator\2017 05 Changes\4. REDZED-Serviceability-170410-V6.4 Test.xls | E3: User Problem 2 | G3: =IFERROR(VLOOKUP(MONTH(B3),'Day and Months Table'!A:B,2,FALSE)&VLOOKUP(DAY(B3),'Day and Months Table'!A:B,2,FALSE),"N/A") -> 0410 | H3: =RIGHT(YEAR(B3),2)&G3 -> 170410 | I3: =CONCATENATE(C3," ",H3) -> V6.4 Test2 (v6.42) 170410
A4: Trevor Smith | B4: 2017-05-01 | C4: V6.6 Test (v6.43) | D4: K:\IT\Change_Work Requests\Work Request\WR004 - Commercial Calculator\02 Residential Calculator\2017 05 Changes\4. REDZED-Serviceability-170410-V6.6 Test.xls | E4: User Problems 3 - 14 inclusive | G4: =IFERROR(VLOOKUP(MONTH(B4),'Day and Months Table'!A:B,2,FALSE)&VLOOKUP(DAY(B4),'Day and Months Table'!A:B,2,FALSE),"N/A") -> 0501 | H4: 170501 | I4: V6.6 Test (v6.43) 170501
A5: Trevor Smith | B5: 2017-05-15 | C5: V6.8 Test (v6.44) | D5: K:\IT\Change_Work Requests\Work Request\WR004 - Commercial Calculator\02 Residential Calculator\2017 05 Changes\4. REDZED-Serviceability-170410-V6.8 Test.xls | E5: User Problems 15 - 17 inclusive | G5: =IFERROR(VLOOKUP(MONTH(B5),'Day and Months Table'!A:B,2,FALSE)&VLOOKUP(DAY(B5),'Day and Months Table'!A:B,2,FALSE),"N/A") -> 0515 | H5: 170515 | I5: V6.8 Test (v6.44) 170515
A6: Trevor Smith | B6: 2017-06-21 | C6: V6.9 (v6.45) | D6: K:\IT\Change_Work Requests\Work Request\WR004 - Commercial Calculator\02 Residential Calculator\2017 05 Changes\4. REDZED-Serviceability-170410-V6.9.xls | E6: User Problem 18 - 19 | F6: Issued to Mario Lorenzi for testing 20 June 2017 | G6: =IFERROR(VLOOKUP(MONTH(B6),'Day and Months Table'!A:B,2,FALSE)&VLOOKUP(DAY(B6),'Day and Months Table'!A:B,2,FALSE),"N/A") -> 0621 | H6: 170621 | I6: V6.9 (v6.45) 170621
A7: Trevor Smith | B7: 2017-06-27 | C7: V6.10 (v6.46) | D7: K:\IT\Change_Work Requests\Work Request\WR004 - Commercial Calculator\02 Residential Calculator\2017 05 Changes\4. REDZED-Serviceability-170410-V6.10.xls A changed versioning system for both this Residential Calculator and the Commercial Calculator was agreed with Tina Georgiadis 26 June 2015 (after receiving feedback from Angel Klidomitis). The last version of the Residential Calculator was named "4. REDZED-Serviceability-170410-V6.4.xls". The naming convention is being changed to "REDZED-Serviceability Type (ie Residential or Commercial) Version Number.xls". Each release will have a date added as a suffix in the format yymmdd. Because the upcoming release does not contain major ammendments it will be named "REDZED-Serviceability Residential v6.5 yymmdd.xls". This being the case, the naming of the development files should have been as per the bracketed values in the Version # cells (eg 4. REDZED-Serviceability-170410-V6.4 Test.xls should have been 4. REDZED-Serviceability-170410-V6.41.xls) To move to the new numbering system this version was copied and renamed and saved to the new development and release folder structure 26 June 2017. The new location and file name is K:\Credit\Servicing Calculator - Residential\Development - Residential\REDZED-Serviceability Residential V0.646.xlsm. The released version number for this series of amendments will be v6.5 with a date added in the format yymmdd. | E7: A renamed version + User Problem 20 | G7: =IFERROR(VLOOKUP(MONTH(B7),'Day and Months Table'!A:B,2,FALSE)&VLOOKUP(DAY(B7),'Day and Months Table'!A:B,2,FALSE),"N/A") -> 0627 | H7: 170627 | I7: V6.10 (v6.46) 170627
A8: Trevor Smith | B8: 2017-06-29 | C8: v6.47 Pending | D8: K:\Credit\Servicing Calculator - Residential\Development - Residential\REDZED-Serviceability Residential V0.647.xlsm | E8: User Problem 21 | G8: =IFERROR(VLOOKUP(MONTH(B8),'Day and Months Table'!A:B,2,FALSE)&VLOOKUP(DAY(B8),'Day and Months Table'!A:B,2,FALSE),"N/A") -> 0629 | H8: 170629 | I8: v6.47 Pending 170629
A9: Trevor Smith | B9: 2017-06-30 | C9: v6.5 | F9: K:\Credit\Servicing Calculator - Residential\Current Released Version - Residential\REDZED-Serviceability Residential V6.5.xlsm | G9: =IFERROR(VLOOKUP(MONTH(B9),'Day and Months Table'!A:B,2,FALSE)&VLOOKUP(DAY(B9),'Day and Months Table'!A:B,2,FALSE),"N/A") -> 0630 | H9: 170630 | I9: v6.5 170630
A10: Mayank Badhen | B10: 2018-06-25 | C10: V7.1A | D10: Updated the living expense | G10: =IFERROR(VLOOKUP(MONTH(B10),'Day and Months Table'!A:B,2,FALSE)&VLOOKUP(DAY(B10),'Day and Months Table'!A:B,2,FALSE),"N/A") -> 0625 | H10: 180625 | I10: V7.1A 180625
A11: Mayank Badhen | B11: 2018-07-25 | C11: V7.2 | D11: updated living expense for Company selecting household is mandatory updated the tax scale compnay income is always attached to household 1 | G11: =IFERROR(VLOOKUP(MONTH(B11),'Day and Months Table'!A:B,2,FALSE)&VLOOKUP(DAY(B11),'Day and Months Table'!A:B,2,FALSE),"N/A") -> 0725 | H11: 180725 | I11: V7.2 180725
A12: Mayank Badhen | B12: 2018-12-11 | C12: V7.2.1 | D12: IF more then three adult in one household please display the mssage | G12: =IFERROR(VLOOKUP(MONTH(B12),'Day and Months Table'!A:B,2,FALSE)&VLOOKUP(DAY(B12),'Day and Months Table'!A:B,2,FALSE),"N/A") -> 1211 | H12: 181211 | I12: V7.2.1 181211
A13: Mayank Badhen | B13: 2019-06-26 | C13: V7.3 | D13: credit card obligations | G13: =IFERROR(VLOOKUP(MONTH(B13),'Day and Months Table'!A:B,2,FALSE)&VLOOKUP(DAY(B13),'Day and Months Table'!A:B,2,FALSE),"N/A") -> 0626 | H13: 190626 | I13: V7.3 190626
A14: Mayank Badhen | B14: 2019-12-02 | C14: V7.4 | D14: IO term fixed | G14: =IFERROR(VLOOKUP(MONTH(B14),'Day and Months Table'!A:B,2,FALSE)&VLOOKUP(DAY(B14),'Day and Months Table'!A:B,2,FALSE),"N/A") -> 1202 | H14: 191202 | I14: V7.4 191202
G15: =IFERROR(VLOOKUP(MONTH(B15),'Day and Months Table'!A:B,2,FALSE)&VLOOKUP(DAY(B15),'Day and Months Table'!A:B,2,FALSE),"N/A") -> N/A | H15: 00N/A | I15: 00N/A
G16: =IFERROR(VLOOKUP(MONTH(B16),'Day and Months Table'!A:B,2,FALSE)&VLOOKUP(DAY(B16),'Day and Months Table'!A:B,2,FALSE),"N/A") -> N/A | H16: 00N/A | I16: 00N/A
G17: =IFERROR(VLOOKUP(MONTH(B17),'Day and Months Table'!A:B,2,FALSE)&VLOOKUP(DAY(B17),'Day and Months Table'!A:B,2,FALSE),"N/A") -> N/A | H17: 00N/A | I17: 00N/A
A18: John Jiang | B18: 2020-07-30 | C18: V10.0 | D18: 1. Residential calculator a. Introduction of a traffic light Pass, Refer to RZ or Fail notification. Pass >1.10, Refer >1.05 – 1.10, Fail below 1.05. The introduction of the Refer category is designed to encourage brokers to Refer deals where we don’t quite meet servicing requirements, but in discussion with RZ we may jointly find a way forward. Potentially these deals may be currently being sent to other lenders who have lower servicing ratio benchmarks). b. Creating a blank template. c. Removal of the tax calculation for company income to fall in line with the policy which states that we assess on NPBT. Other general changes including ensuring; 1. Living expenses were consistent across all selections (there were some errors & inconsistencies) 2. Tax scales were checked and amended for consistency. | G18: =IFERROR(VLOOKUP(MONTH(B18),'Day and Months Table'!A:B,2,FALSE)&VLOOKUP(DAY(B18),'Day and Months Table'!A:B,2,FALSE),"N/A") -> 0730 | H18: 200730 | I18: V10.0 200730
A19: John Jiang | B19: 2020-08-13 | C19: V10.0 Residential | D19: Changed footer | G19: =IFERROR(VLOOKUP(MONTH(B19),'Day and Months Table'!A:B,2,FALSE)&VLOOKUP(DAY(B19),'Day and Months Table'!A:B,2,FALSE),"N/A") -> 0813 | H19: 200813 | I19: V10.0 Residential 200813
A20: John Jiang | B20: 2020-11-16 | C20: V10.1 | D20: changed tax bracket to new 2020 tax regulation | G20: =IFERROR(VLOOKUP(MONTH(B20),'Day and Months Table'!A:B,2,FALSE)&VLOOKUP(DAY(B20),'Day and Months Table'!A:B,2,FALSE),"N/A") -> 1116 | H20: 201116 | I20: V10.1 201116
A21: John Jiang | B21: 2020-12-17 | C21: V10.11 | D21: change interest floor rate from 7% to 6% | G21: =IFERROR(VLOOKUP(MONTH(B21),'Day and Months Table'!A:B,2,FALSE)&VLOOKUP(DAY(B21),'Day and Months Table'!A:B,2,FALSE),"N/A") -> 1217 | H21: 201217 | I21: V10.11 201217
A22: John Jiang | B22: 2021-01-15 | C22: V10.12 | D22: Update HEM table according to Sept 2020 quarter data from HEM | G22: =IFERROR(VLOOKUP(MONTH(B22),'Day and Months Table'!A:B,2,FALSE)&VLOOKUP(DAY(B22),'Day and Months Table'!A:B,2,FALSE),"N/A") -> 0115 | H22: 210115 | I22: V10.12 210115
G23: =IFERROR(VLOOKUP(MONTH(B23),'Day and Months Table'!A:B,2,FALSE)&VLOOKUP(DAY(B23),'Day and Months Table'!A:B,2,FALSE),"N/A") -> N/A | H23: 00N/A | I23: 00N/A
G24: =IFERROR(VLOOKUP(MONTH(B24),'Day and Months Table'!A:B,2,FALSE)&VLOOKUP(DAY(B24),'Day and Months Table'!A:B,2,FALSE),"N/A") -> N/A | H24: 00N/A | I24: 00N/A
G25: =IFERROR(VLOOKUP(MONTH(B25),'Day and Months Table'!A:B,2,FALSE)&VLOOKUP(DAY(B25),'Day and Months Table'!A:B,2,FALSE),"N/A") -> N/A | H25: 00N/A | I25: 00N/A
G26: =IFERROR(VLOOKUP(MONTH(B26),'Day and Months Table'!A:B,2,FALSE)&VLOOKUP(DAY(B26),'Day and Months Table'!A:B,2,FALSE),"N/A") -> N/A | H26: 00N/A | I26: 00N/A
G27: =IFERROR(VLOOKUP(MONTH(B27),'Day and Months Table'!A:B,2,FALSE)&VLOOKUP(DAY(B27),'Day and Months Table'!A:B,2,FALSE),"N/A") -> N/A | H27: 00N/A | I27: 00N/A
G28: =IFERROR(VLOOKUP(MONTH(B28),'Day and Months Table'!A:B,2,FALSE)&VLOOKUP(DAY(B28),'Day and Months Table'!A:B,2,FALSE),"N/A") -> N/A | H28: 00N/A | I28: 00N/A
G29: =IFERROR(VLOOKUP(MONTH(B29),'Day and Months Table'!A:B,2,FALSE)&VLOOKUP(DAY(B29),'Day and Months Table'!A:B,2,FALSE),"N/A") -> N/A | H29: 00N/A | I29: 00N/A
G30: =IFERROR(VLOOKUP(MONTH(B30),'Day and Months Table'!A:B,2,FALSE)&VLOOKUP(DAY(B30),'Day and Months Table'!A:B,2,FALSE),"N/A") -> N/A | H30: 00N/A | I30: 00N/A
G31: =IFERROR(VLOOKUP(MONTH(B31),'Day and Months Table'!A:B,2,FALSE)&VLOOKUP(DAY(B31),'Day and Months Table'!A:B,2,FALSE),"N/A") -> N/A | H31: 00N/A | I31: 00N/A
G32: =IFERROR(VLOOKUP(MONTH(B32),'Day and Months Table'!A:B,2,FALSE)&VLOOKUP(DAY(B32),'Day and Months Table'!A:B,2,FALSE),"N/A") -> N/A | H32: 00N/A | I32: 00N/A

Sheet Day and Months Table (hidden)
A1: 1 | B1: 01
A2: 2 | B2: 02
A3: 3 | B3: 03
A4: 4 | B4: 04
A5: 5 | B5: 05
A6: 6 | B6: 06
A7: 7 | B7: 07
A8: 8 | B8: 08
A9: 9 | B9: 09
A10: 10 | B10: 10
A11: 11 | B11: 11
A12: 12 | B12: 12
A13: 13 | B13: 13
A14: 14 | B14: 14
A15: 15 | B15: 15
A16: 16 | B16: 16
A17: 17 | B17: 17
A18: 18 | B18: 18
A19: 19 | B19: 19
A20: 20 | B20: 20
A21: 21 | B21: 21
A22: 22 | B22: 22
A23: 23 | B23: 23
A24: 24 | B24: 24
A25: 25 | B25: 25
A26: 26 | B26: 26
A27: 27 | B27: 27
A28: 28 | B28: 28
A29: 29 | B29: 29
A30: 30 | B30: 30
A31: 31 | B31: 31
